{"text_format":"3","workbook":"xlsx","n_sheets":2,"sheets":["Faktura","Firmaoppsett"],"not_rendered":{"images":1,"defined_names":27},"read":"whole","date_system":"1900"}

{"sheet":"Faktura","index":0,"n_rows":35,"n_cols":7,"rows_kept":35,"merged":[[1,1,1,2],[1,3,2,4],[1,6,2,6],[3,3,3,4],[4,3,4,4],[5,3,5,4],[23,1,23,3],[24,1,24,3],[25,1,25,3],[26,1,26,3],[34,1,34,4]]}
[null,"FAKTURA","0005"]
[null,{"$f":"TODAY()","v":"2018-07-13"},null,{"$f":"Fakturatotal","v":477.9},null," ","Firmaoppsett"]
[null,"FORFALLER TIL BETALING:",{"$f":"TODAY()+15","v":"2018-07-28"},null,null," "]
[null,"KIM ABERCROMBIE",null,"ADVENTURE WORKS"]
[null,"Fabrikam, Inc.",null,"23456 Maple Street"]
[null,"1234 First Street",null,"Orange Grove, CA 09876, USA"]
[null,"Forest, ELLER 12345"]
[null,"ANTALL","DETALJER","ENHETSPRIS","LINJETOTAL"]
[null,2,"Miniprogrammer",{"v":89.7,"d":"89.70"},{"$f":"IFERROR(Fakturadetaljer[[#This Row],[ENHETSPRIS]]*Fakturadetaljer[[#This Row],[ANTALL]],\"\")","v":{"v":179.4,"d":"179.40"}}]
[null,5,"Pakninger",{"v":59.7,"d":"59.70"},{"$f":"IFERROR(Fakturadetaljer[[#This Row],[ENHETSPRIS]]*Fakturadetaljer[[#This Row],[ANTALL]],\"\")","v":{"v":298.5,"d":"298.50"}}]
[{"$nulls":4},{"$f":"IFERROR(Fakturadetaljer[[#This Row],[ENHETSPRIS]]*Fakturadetaljer[[#This Row],[ANTALL]],\"\")","v":0}]
[{"$nulls":4},{"$f":"IFERROR(Fakturadetaljer[[#This Row],[ENHETSPRIS]]*Fakturadetaljer[[#This Row],[ANTALL]],\"\")","v":0}]
[{"$nulls":4},{"$f":"IFERROR(Fakturadetaljer[[#This Row],[ENHETSPRIS]]*Fakturadetaljer[[#This Row],[ANTALL]],\"\")","v":0}]
[{"$nulls":4},{"$f":"IFERROR(Fakturadetaljer[[#This Row],[ENHETSPRIS]]*Fakturadetaljer[[#This Row],[ANTALL]],\"\")","v":0}]
[{"$nulls":4},{"$f":"IFERROR(Fakturadetaljer[[#This Row],[ENHETSPRIS]]*Fakturadetaljer[[#This Row],[ANTALL]],\"\")","v":0}]
[{"$nulls":4},{"$f":"IFERROR(Fakturadetaljer[[#This Row],[ENHETSPRIS]]*Fakturadetaljer[[#This Row],[ANTALL]],\"\")","v":0}]
[{"$nulls":4},{"$f":"IFERROR(Fakturadetaljer[[#This Row],[ENHETSPRIS]]*Fakturadetaljer[[#This Row],[ANTALL]],\"\")","v":0}]
[{"$nulls":4},{"$f":"IFERROR(Fakturadetaljer[[#This Row],[ENHETSPRIS]]*Fakturadetaljer[[#This Row],[ANTALL]],\"\")","v":0}]
[{"$nulls":4},{"$f":"IFERROR(Fakturadetaljer[[#This Row],[ENHETSPRIS]]*Fakturadetaljer[[#This Row],[ANTALL]],\"\")","v":0}]
[{"$nulls":4},{"$f":"IFERROR(Fakturadetaljer[[#This Row],[ENHETSPRIS]]*Fakturadetaljer[[#This Row],[ANTALL]],\"\")","v":0}]
[{"$nulls":4},{"$f":"IFERROR(Fakturadetaljer[[#This Row],[ENHETSPRIS]]*Fakturadetaljer[[#This Row],[ANTALL]],\"\")","v":0}]
[{"$nulls":4},{"$f":"IFERROR(Fakturadetaljer[[#This Row],[ENHETSPRIS]]*Fakturadetaljer[[#This Row],[ANTALL]],\"\")","v":0}]
[{"$nulls":4},{"$f":"IFERROR(Fakturadetaljer[[#This Row],[ENHETSPRIS]]*Fakturadetaljer[[#This Row],[ANTALL]],\"\")","v":0}]
[null,"Rabatt"]
[null,"Nettototal",null,null,{"$f":"SUM(Fakturadetaljer[LINJETOTAL])-E24","v":{"v":477.9,"d":"kr 477.90"}}]
[null,"Avgift"]
[null,{"$f":"REPT(Firmaoppsett_DinValutaforkortelse,LEN(Firmaoppsett_DinValutaforkortelse)>0) & \" TOTALT\"","v":"NOK TOTALT"},null,null,{"$f":"IFERROR(E25+E26, \"\")","v":{"v":477.9,"d":"kr 477.90"}}]
[null,"BETALINGSDETALJER",null,null,"ANNEN INFORMASJON"]
[null,"Mottakernavn:",{"$f":" Firmaoppsett_BankMottakernavn","v":"Adventure Works"},null,{"$f":"IFERROR(Firmaoppsett_DittNavn,\"\")","v":""}]
[null,"Banknavn:",{"$f":"Firmaoppsett_Banknavn","v":"Woodgrove Bank"},null,{"$f":"IFERROR(\"Telefon: \" & Firmaoppsett_DinTelefon,\"\")","v":"Telefon: 425-555-0150"}]
[null,"Bankadresse:",{"$f":"Firmaoppsett_Bankadresse","v":"234 Main St. Orange Grove, CA 09876, USA"},null,{"$f":"IFERROR(\"Faks: \" & Firmaoppsett_DinFaks,\"\")","v":"Faks: 425-555-0151"}]
[null,"Kontonummer:",{"$f":"Firmaoppsett_Bankkonto","v":1234567},null,{"$f":"IFERROR(Firmaoppsett_DinNettadresse,\"\")","v":"Adventure-Works.com"}]
[null,"Rutingnummer (SWIFT-kode):",{"$f":"Firmaoppsett_Bankruting","v":9876543210},null,{"$f":"IFERROR(Firmaoppsett_DinEpost,\"\")","v":"Accounting@Adventure-Works.com"}]
[null,"Betalingsreferanse:",{"$f":"Fakturanummervisning","v":"0005"},null,{"$f":"IFERROR(IF(LEN(Client_PO),\"Contract/PO: \" & Client_PO,\"\"),\"\")","v":""}]
[null,{"$f":"UPPER(\"Betaling via bankoverføring som utstedes til \" & Firmaoppsett_BetalingsmottakerSjekk& \".\")","v":"BETALING VIA BANKOVERFØRING SOM UTSTEDES TIL ADVENTURE WORKS."}]

{"sheet":"Firmaoppsett","index":1,"n_rows":20,"n_cols":5,"rows_kept":20}
[null,"FIRMAOPPSETT"]
[null,"OPPLYSNINGER OM FAKTURERINGSFIRMA","VERDI",null,"Faktura"]
[null,"Navn","Greg Akselrod"]
[null,"Firmanavn","ADVENTURE WORKS"]
[null,"Adresselinje 1","23456 Maple Street"]
[null,"Adresselinje 2","Orange Grove, CA 09876, USA"]
[null,"Adresselinje 3"]
[null,"Adresselinje 4"]
[null,"Adresselinje 5"]
[null,"Telefon","425-555-0150"]
[null,"Faks","425-555-0151"]
[null,"Nettside","Adventure-Works.com"]
[null,"E-post","Accounting@Adventure-Works.com"]
[null,"Forkortelse for valuta","NOK"]
[null,"Mottakernavn for bankoverføring","Adventure Works"]
[null,"Banknavn","Woodgrove Bank"]
[null,"Bankadresse","234 Main St. Orange Grove, CA 09876, USA"]
[null,"Kontonummer",1234567]
[null,"Rutingnummer (SWIFT-kode)",9876543210]
[null,"Sjekker utstedes til","Adventure Works"]